bitfinex/quotes_SOLUSD_20220211
["timestamp","ask_amount","ask_price","bid_price","bid_amount"]
[1644546748401,0.04596723,104.67,104.6,37.1146]
[1644546748597,0.04596723,104.69,104.6,54.2446]
[1644546748798,0.04596723,104.7,104.6,63.27527143]
[1644546748999,0.04596723,104.68,104.6,63.27527143]
[1644546749197,0.04596723,104.7,104.6,63.27527143]
[1644546749398,0.04596723,104.67,104.6,63.27527143]
[1644546749596,0.04596723,104.7,104.6,63.27527143]
[1644546749999,0.04596723,104.7,104.6,158.85527143]
[1644546750997,0.04596723,104.7,104.63,14.335]
[1644546751198,0.04596723,104.7,104.64,28.5884]
[1644546751400,24.9609,104.71,104.64,28.8384]
[1644546751698,0.04596723,104.7,104.64,82.6176]
[1644546751898,0.04596723,104.71,104.65,7.43714874]
[1644546752127,4.776,104.71,104.65,7.43714874]
[1644546752399,29.53906723,104.71,104.65,7.43714874]
[1644546752601,24.76306723,104.71,104.65,7.68714874]
[1644546752798,24.76306723,104.71,104.65,7.43714874]
[1644546752799,45.10086723,104.71,104.65,7.43714874]
[1644546753399,45.10086723,104.71,104.65,7.68714874]
[1644546754600,24.76306723,104.71,104.65,7.68714874]
[1644546755203,24.7171,104.71,104.65,13.68714874]
[1644546755404,24.7171,104.71,104.65,7.68714874]
[1644546755602,24.7171,104.71,104.65,13.68714874]
[1644546755803,24.76306723,104.71,104.65,13.68714874]
[1644546756003,24.76306723,104.71,104.65,28.02314874]
[1644546756203,24.76306723,104.71,104.65,22.02314874]
[1644546757307,0.04596723,104.71,104.65,22.02314874]
[1644546757507,4.82196723,104.72,104.65,28.02314874]
[1644546757712,0.04596723,104.72,104.65,51.18014874]
[1644546758308,37.87847139,104.72,104.65,51.18014874]
[1644546758907,37.87847139,104.72,104.65,45.18014874]
[1644546759107,37.87847139,104.72,104.65,37.743]
[1644546759708,52.21507139,104.72,104.65,23.407]
[1644546760109,52.21507139,104.72,104.65,65.17697666]
[1644546760313,0.04596723,104.72,104.65,65.17697666]
[1644546760610,0.04596723,104.72,104.65,101.41867666]
[1644546761111,0.04596723,104.72,104.65,110.6479259]
[1644546761910,0.04596723,104.72,104.66,1.75234376]
[1644546762110,4.776,104.73,104.68,14.3283]
[1644546762310,4.776,104.73,104.69,14.31739924]
[1644546762813,4.776,104.73,104.69,20.56739924]
[1644546763415,0.04596723,104.75,104.7,14.3283]
[1644546763613,24.70736723,104.76,104.7,14.3283]
[1644546763811,24.70736723,104.76,104.71,4.774]
[1644546764010,0.04596723,104.76,104.71,4.774]
[1644546764211,24.58676723,104.78,104.71,11.024]
[1644546764412,0.04596723,104.77,104.72,36.99397666]
[1644546764612,0.04596723,104.79,104.72,51.31927666]
[1644546764813,5.68690681,104.81,104.74,14.31739924]
[1644546764814,5.73287404,104.81,104.74,14.31739924]
[1644546765112,0.04596723,104.8,104.74,14.31739924]
[1644546765316,5.73296707,104.81,104.74,14.56739924]
[1644546765613,0.04596723,104.81,104.74,14.56739924]
[1644546765912,75.41122726,104.82,104.74,28.89039924]
[1644546766112,0.04660174,104.81,104.74,28.89039924]
[1644546767413,0.04660174,104.81,104.74,41.772743]
[1644546767613,0.04660174,104.82,104.75,4.772]
[1644546767814,0.04660174,104.83,104.77,14.3173]
[1644546768015,51.65645843,104.85,104.78,14.31739924]
[1644546768016,0.04660174,104.84,104.78,14.31739924]
[1644546768214,51.70306017,104.85,104.78,14.31739924]
[1644546768414,49.01700174,104.85,104.78,14.56739924]
[1644546768618,34.97711666,104.84,104.78,14.31739924]
[1644546769414,59.56200174,104.85,104.78,14.56739924]
[1644546769614,55.01700174,104.85,104.78,14.56739924]
[1644546770414,42.50463459,104.84,104.78,14.56739924]
[1644546770618,42.50463459,104.84,104.78,14.31739924]
[1644546771016,47.03363459,104.84,104.78,14.31739924]
[1644546771217,47.03363459,104.84,104.75,24.7841]
[1644546771416,0.04660174,104.83,104.75,25.0341]
[1644546771615,0.04660174,104.83,104.75,31.0341]
[1644546772216,0.04660174,104.83,104.76,45.05012904]
[1644546772620,0.04660174,104.83,104.76,45.30012904]
[1644546772818,0.04660174,104.83,104.76,51.30012904]
[1644546773120,0.04660174,104.83,104.76,45.30012904]
[1644546773317,0.04660174,104.83,104.76,51.30012904]
[1644546773717,0.04660174,104.83,104.76,45.30012904]
[1644546773918,0.04660174,104.83,104.76,51.30012904]
[1644546774120,0.04660174,104.83,104.76,45.30012904]
[1644546775221,0.04660174,104.83,104.76,70.16212904]
[1644546775623,0.04660174,104.83,104.76,84.48202904]
[1644546775822,0.04660174,104.83,104.76,90.48202904]
[1644546776222,0.04660174,104.83,104.76,84.48202904]
[1644546776823,0.04660174,104.83,104.76,90.48202904]
[1644546777230,0.04660174,104.83,104.76,84.48202904]
[1644546777524,0.04660174,104.83,104.76,90.48202904]
[1644546777726,0.04660174,104.83,104.77,1.75234376]
[1644546777924,6.04660174,104.84,104.78,14.3172]
[1644546778128,0.04660174,104.83,104.78,14.3172]
[1644546778324,0.04660174,104.84,104.78,20.5672]
[1644546778530,24.1338,104.85,104.78,20.5672]
[1644546778730,0.04660174,104.84,104.79,6.26124686]
[1644546778926,24.1338,104.85,104.79,6.26124686]
[1644546779125,24.1338,104.85,104.79,6.51124686]
[1644546779727,30.1338,104.85,104.79,20.82624686]
[1644546780128,0.04660174,104.86,104.79,20.82624686]
[1644546780328,0.04660174,104.86,104.79,28.57859062]
[1644546780528,4.48860174,104.88,104.8,22.9821]
[1644546780733,4.48860174,104.88,104.8,28.9821]
[1644546780933,4.48860174,104.88,104.81,37.83907984]
[1644546781327,4.48860174,104.88,104.81,44.08907984]
[1644546781826,4.48860174,104.88,104.81,52.40127984]
[1644546782249,4.48860174,104.88,104.81,58.40127984]
[1644546782449,10.48860174,104.88,104.81,58.40127984]
[1644546782750,10.48860174,104.88,104.81,44.08907984]
[1644546782950,10.48860174,104.88,104.81,38.08907984]
[1644546783950,44.78638713,104.87,104.8,24.73444376]
[1644546784249,44.78638713,104.87,104.77,1.75234376]
[1644546784451,27.81340174,104.86,104.75,35.3356]
[1644546784748,27.81340174,104.86,104.75,55.9769]
[1644546784951,43.55805588,104.85,104.76,45.13643191]
[1644546785150,0.04660174,104.84,104.78,6.17494399]
[1644546785350,43.60465762,104.85,104.78,6.42494399]
[1644546785752,57.92505762,104.85,104.78,6.42494399]
[1644546786152,57.92505762,104.85,104.78,0.25]
[1644546786353,57.92505762,104.85,104.76,19.3387]
[1644546786555,57.92505762,104.85,104.76,0.25]
[1644546786754,57.92505762,104.85,104.75,46.52874376]
[1644546786954,57.92505762,104.85,104.75,25.95794376]
[1644546787255,57.92505762,104.85,104.76,12.1405264]
[1644546787654,63.92505762,104.85,104.76,12.1405264]
[1644546788354,63.92505762,104.85,104.76,12.3905264]
[1644546788557,49.60465762,104.85,104.76,14.14801577]
[1644546788755,49.60465762,104.85,104.76,20.14801577]
[1644546788954,43.60465762,104.85,104.76,20.14801577]
[1644546789155,43.60465762,104.85,104.76,31.27801577]
[1644546789758,43.60465762,104.85,104.78,37.60959023]
[1644546789955,49.60465762,104.85,104.78,37.60959023]
[1644546790156,43.60465762,104.85,104.78,39.6170796]
[1644546791158,43.60465762,104.85,104.78,44.3860796]
[1644546791757,43.60465762,104.85,104.78,58.7028796]
[1644546792558,0.04660174,104.85,104.78,58.7028796]
[1644546792759,0.04660174,104.85,104.78,75.8328796]
[1644546793867,46.25093015,104.87,104.8,28.01578567]
[1644546794058,0.04660174,104.86,104.8,28.01578567]
[1644546794260,46.29753189,104.87,104.8,30.02327504]
[1644546794459,0.04660174,104.86,104.8,15.70927504]
[1644546794660,46.29753189,104.87,104.8,13.95178567]
[1644546795261,70.08433189,104.87,104.79,34.6912]
[1644546795460,0.04660174,104.86,104.79,23.8112]
[1644546795663,0.04660174,104.86,104.79,31.56868937]
[1644546795960,0.04660174,104.86,104.79,42.69868937]
[1644546796163,0.04660174,104.86,104.79,99.30145375]
[1644546796362,0.04660174,104.86,104.79,91.29396438]
[1644546797063,0.04660174,104.86,104.79,49.0071]
[1644546797664,0.04660174,104.86,104.79,49.2571]
[1644546798064,0.04660174,104.86,104.79,92.21115326]
[1644546798265,0.04660174,104.86,104.79,93.96864263]
[1644546798866,0.04660174,104.86,104.79,36.44868937]
[1644546799065,0.04660174,104.86,104.79,23.5612]
[1644546799066,4.551,104.85,104.79,23.5612]
[1644546799465,4.551,104.85,104.77,42.795]
[1644546799665,0.04660174,104.84,104.77,42.795]
[1644546799865,35.51139363,104.85,104.78,70.16518047]
[1644546800067,35.51139363,104.85,104.78,84.48258047]
[1644546800265,35.51139363,104.85,104.78,86.49006984]
[1644546800467,60.42349363,104.85,104.78,72.17266984]
[1644546800667,60.42349363,104.85,104.78,70.41518047]
[1644546801765,74.74279363,104.85,104.78,25.1366]
[1644546802365,79.29279363,104.85,104.78,25.1366]
[1644546802965,79.29279363,104.85,104.78,67.88499318]
[1644546803165,85.29279363,104.85,104.78,67.88499318]
[1644546803366,85.29279363,104.85,104.78,25.1366]
[1644546803565,80.74279363,104.85,104.78,25.1366]
[1644546803769,83.42885206,104.85,104.78,25.1366]
[1644546803967,83.38225032,104.85,104.78,25.1366]
[1644546804168,1.34542288,104.82,104.78,25.1366]
[1644546806070,1.34542288,104.82,104.78,24.8866]
[1644546806274,11.22142288,104.82,104.77,4.769]
[1644546806472,53.01431136,104.81,104.77,4.769]
[1644546806672,48.46431136,104.81,104.74,24.73288937]
[1644546806874,1.34542288,104.8,104.75,16.81770843]
[1644546807072,54.5109131,104.81,104.75,18.5751978]
[1644546807272,48.5109131,104.81,104.75,18.5751978]
[1644546807774,48.5109131,104.81,104.75,33.1466978]
[1644546808398,48.5109131,104.81,104.75,16.32898937]
[1644546809278,54.5109131,104.81,104.75,16.32898937]
[1644546809474,48.5109131,104.81,104.75,16.32898937]
[1644546810275,54.5109131,104.81,104.76,1.75748937]
[1644546810476,54.46431136,104.81,104.74,27.7474]
[1644546810678,54.46431136,104.81,104.74,4.772]
[1644546810679,1.34542288,104.8,104.74,4.772]
[1644546810877,1.34542288,104.8,104.74,5.022]
[1644546810878,1.39202462,104.8,104.74,5.022]
[1644546811478,47.71922715,104.79,104.74,5.022]
[1644546812477,47.71922715,104.79,104.74,0.25]
[1644546812677,47.71922715,104.79,104.73,23.5058]
[1644546812878,49.06465003,104.79,104.73,23.5058]
[1644546813077,47.71922715,104.79,104.73,23.5058]
[1644546813482,47.71922715,104.79,104.7,11.13]
[1644546813483,63.39185003,104.79,104.7,11.13]
[1644546813680,5.89842288,104.78,104.69,1.75748937]
[1644546813879,29.51062288,104.78,104.69,1.75748937]
[1644546814079,35.51062288,104.78,104.69,1.75748937]
[1644546814279,40.37696,104.77,104.69,1.75748937]
[1644546814482,14.3316,104.76,104.69,1.75748937]
[1644546814680,47.57090925,104.75,104.69,1.75748937]
[1644546815280,47.57090925,104.75,104.69,2.00748937]
[1644546815484,8.564,104.76,104.69,2.00748937]
[1644546815684,8.564,104.76,104.69,22.33678937]
[1644546816083,23.6122,104.78,104.69,22.33678937]
[1644546816283,29.6122,104.78,104.69,45.02648937]
[1644546816483,6.0,104.78,104.7,35.56937238]
[1644546816684,6.0,104.78,104.72,14.3247]
[1644546816885,11.94302462,104.81,104.72,14.5747]
[1644546817087,0.04660174,104.8,104.72,37.9983]
[1644546817283,1.39202462,104.8,104.72,39.75578937]
[1644546817483,44.40905865,104.79,104.72,55.49779289]
[1644546818285,44.40905865,104.79,104.72,61.49779289]
[1644546818492,0.04660174,104.8,104.72,66.62779289]
[1644546818786,0.04660174,104.8,104.74,14.3217]
[1644546818985,0.04660174,104.81,104.74,14.3217]
[1644546819185,0.04660174,104.81,104.75,1.75748937]
[1644546819384,47.02392462,104.82,104.75,2.00748937]
[1644546819589,41.901327,104.81,104.75,37.57686175]
[1644546820084,41.901327,104.81,104.75,2.00748937]
[1644546820286,41.901327,104.81,104.75,16.32868937]
[1644546821086,41.901327,104.81,104.75,64.43568311]
[1644546822486,41.901327,104.81,104.75,16.32868937]
[1644546823490,1.39202462,104.82,104.76,1.75748937]
[1644546823491,0.04660174,104.82,104.76,1.75748937]
[1644546823690,0.04660174,104.83,104.77,14.3177]
[1644546823891,1.39202462,104.84,104.78,4.769]
[1644546824090,0.04660174,104.83,104.78,6.52648937]
[1644546824290,7.39202462,104.84,104.78,6.77648937]
[1644546824490,37.53052583,104.84,104.78,42.24580417]
[1644546825092,38.87594871,104.84,104.78,42.24580417]
[1644546825293,1.39202462,104.84,104.78,56.56300417]
[1644546826295,43.30524783,104.84,104.78,56.56300417]
[1644546826495,49.30524783,104.84,104.78,56.56300417]
[1644546827394,49.30524783,104.84,104.78,21.09368937]
[1644546827596,43.30524783,104.84,104.78,16.32468937]
[1644546828396,47.85624783,104.84,104.78,16.32468937]
[1644546828696,1.34542288,104.83,104.78,0.25]
[1644546828896,43.43950371,104.82,104.76,24.926]
[1644546829097,44.78492659,104.82,104.76,24.926]
[1644546829896,44.78492659,104.82,104.76,30.926]
[1644546830097,1.34542288,104.81,104.76,34.50420904]
[1644546830296,1.34542288,104.82,104.76,34.75420904]
[1644546830501,1.39202462,104.83,104.77,4.771]
[1644546830697,5.94302462,104.84,104.78,14.3181]
[1644546830925,0.04660174,104.83,104.78,14.5681]
[1644546831101,1.39202462,104.84,104.78,14.5681]
[1644546831300,47.37318445,104.83,104.78,14.5681]
[1644546831799,47.37318445,104.83,104.78,20.5681]
[1644546831999,47.37318445,104.83,104.78,14.5681]
[1644546832205,47.37318445,104.83,104.78,50.20640657]
[1644546832800,1.39202462,104.84,104.78,50.20640657]
[1644546833002,1.39202462,104.84,104.78,51.96389594]
[1644546833403,6.04660174,104.84,104.78,51.96389594]
[1644546833605,0.04660174,104.84,104.78,51.96389594]
[1644546833902,40.39363452,104.84,104.78,51.96389594]
[1644546834103,41.7390574,104.84,104.78,57.96389594]
[1644546834303,41.7390574,104.84,104.78,50.20640657]
[1644546836904,47.7390574,104.84,104.78,50.20640657]
[1644546837307,41.7390574,104.84,104.78,50.20640657]
[1644546837506,47.7390574,104.84,104.78,50.20640657]
[1644546838206,7.34542288,104.84,104.78,50.20640657]
[1644546838431,1.34542288,104.84,104.78,63.09389594]
[1644546838606,1.39202462,104.85,104.78,69.09389594]
[1644546838806,1.39202462,104.86,104.78,69.09389594]
[1644546839206,42.56342193,104.85,104.78,69.09389594]
[1644546840208,42.56342193,104.85,104.78,33.45558937]
[1644546840405,43.90884481,104.85,104.78,25.6981]
[1644546840608,1.34542288,104.84,104.78,14.3181]
[1644546840806,1.39202462,104.84,104.77,14.3194]
[1644546841009,0.04660174,104.83,104.77,14.3194]
[1644546841211,37.43690155,104.83,104.77,20.3194]
[1644546841408,37.48350329,104.83,104.77,6.0]
[1644546841610,38.82892617,104.83,104.77,6.0]
[1644546841809,1.34542288,104.82,104.75,30.1186]
[1644546842010,1.39202462,104.82,104.75,30.1186]
[1644546842413,38.33508054,104.81,104.75,24.1186]
[1644546842811,1.34542288,104.82,104.76,9.59929815]
[1644546843012,1.39202462,104.83,104.76,14.37029815]
[1644546843210,1.39202462,104.84,104.76,22.37778752]
[1644546843414,0.04660174,104.83,104.76,17.60678752]
[1644546843613,0.04660174,104.83,104.77,4.771]
[1644546843812,40.7451763,104.83,104.77,19.3403]
[1644546844011,42.13720092,104.83,104.77,19.3403]
[1644546844612,42.09059918,104.83,104.77,19.3403]
[1644546844812,1.34542288,104.83,104.78,41.71207775]
[1644546845015,1.34542288,104.83,104.78,56.03037775]
[1644546845212,1.39202462,104.84,104.78,56.28037775]
[1644546845416,1.34542288,104.84,104.78,56.28037775]
[1644546845615,1.34542288,104.84,104.78,62.28037775]
[1644546845812,1.34542288,104.84,104.78,56.28037775]
[1644546846513,1.34542288,104.84,104.78,58.03786712]
[1644546846715,1.39202462,104.85,104.78,75.16786712]
[1644546847014,1.39202462,104.86,104.79,4.769]
[1644546847218,1.39202462,104.87,104.81,14.3112]
[1644546847414,1.34542288,104.87,104.82,9.59929815]
[1644546847817,1.34542288,104.87,104.82,6.25]
[1644546848116,1.34542288,104.87,104.82,0.25]
[1644546848919,1.34542288,104.87,104.81,51.13242045]
[1644546849319,1.34542288,104.87,104.81,52.88990982]
[1644546850018,34.23707621,104.86,104.81,51.13242045]
[1644546850321,1.34542288,104.87,104.81,52.88990982]
[1644546851119,42.17742943,104.87,104.81,52.88990982]
[1644546851521,42.17742943,104.87,104.81,14.5637]
[1644546851717,1.34542288,104.86,104.81,14.5637]
[1644546852319,1.34542288,104.86,104.81,0.25]
[1644546852519,38.69848754,104.85,104.81,0.25]
[1644546852821,40.04391042,104.85,104.8,14.5652]
[1644546853021,40.09051216,104.85,104.79,47.2759]
[1644546853219,40.04391042,104.85,104.79,47.2759]
[1644546853649,40.04391042,104.85,104.8,11.45089717]
[1644546853852,1.34542288,104.85,104.8,11.45089717]
[1644546854050,1.34542288,104.85,104.8,13.20838654]
[1644546854252,1.34542288,104.85,104.8,31.84038654]
[1644546854451,0.04660174,104.85,104.8,31.84038654]
[1644546854655,1.34542288,104.86,104.81,11.13]
[1644546854852,0.04660174,104.85,104.81,17.38]
[1644546855052,1.34542288,104.86,104.82,14.3111]
[1644546855255,0.04660174,104.86,104.82,14.5611]
[1644546855555,1.39202462,104.87,104.82,54.42157873]
[1644546855952,7.39202462,104.87,104.82,54.42157873]
[1644546856153,1.39202462,104.87,104.82,54.42157873]
[1644546856954,6.04660174,104.87,104.82,54.42157873]
[1644546857153,0.04660174,104.87,104.82,54.42157873]
[1644546858057,0.04660174,104.87,104.82,60.42157873]
[1644546858255,0.04660174,104.87,104.82,54.42157873]
[1644546858657,39.2332072,104.87,104.82,54.42157873]
[1644546859056,39.2332072,104.87,104.82,14.5611]
[1644546859657,45.2332072,104.87,104.82,14.5611]
[1644546860059,45.2332072,104.87,104.82,63.22358467]
[1644546860960,6.04660174,104.87,104.82,63.22358467]
[1644546861160,0.04660174,104.87,104.82,63.22358467]
[1644546861362,0.04660174,104.87,104.82,73.99158467]
[1644546861561,0.04660174,104.87,104.82,67.99158467]
[1644546862262,0.04660174,104.87,104.82,19.3291]
[1644546862462,0.04660174,104.87,104.82,14.5611]
[1644546863965,1.39202462,104.87,104.8,21.9274]
[1644546864164,1.34542288,104.86,104.8,21.9274]
[1644546864374,1.39202462,104.86,104.8,22.1774]
[1644546864766,35.46430555,104.85,104.8,22.1774]
[1644546865268,35.46430555,104.85,104.8,14.5644]
[1644546865673,1.39202462,104.86,104.8,14.5644]
[1644546865870,0.04660174,104.86,104.8,31.6944]
[1644546866169,1.39202462,104.87,104.8,33.45188937]
[1644546866370,1.39202462,104.87,104.8,25.6944]
[1644546866569,46.86748558,104.86,104.8,25.6944]
[1644546866772,46.91408732,104.86,104.8,25.6944]
[1644546869170,46.91408732,104.86,104.8,30.4634]
[1644546869570,46.91408732,104.86,104.81,8.50034261]
[1644546869772,46.86748558,104.86,104.81,23.06374261]
[1644546870773,1.39202462,104.87,104.81,23.06374261]
[1644546870970,7.39202462,104.87,104.81,23.06374261]
[1644546872471,43.28507387,104.86,104.81,14.5634]
[1644546873173,47.83607387,104.86,104.8,22.5802]
[1644546873377,1.34542288,104.85,104.77,47.7189]
[1644546873671,38.00646071,104.84,104.76,74.19791431]
[1644546873873,38.00646071,104.84,104.76,50.41311431]
[1644546874072,38.00646071,104.84,104.76,56.41311431]
[1644546874271,38.00646071,104.84,104.76,56.66311431]
[1644546874875,38.00646071,104.84,104.78,14.3186]
[1644546875275,38.00646071,104.84,104.78,14.5686]
[1644546875675,39.35188359,104.84,104.78,14.5686]
[1644546876076,39.35188359,104.84,104.78,17.22435096]
[1644546876276,39.35188359,104.84,104.78,16.32203792]
[1644546876478,53.67188359,104.84,104.77,14.32]
[1644546876678,4.551,104.83,104.75,1.75343792]
[1644546876875,4.551,104.83,104.73,4.769]
[1644546876876,1.34542288,104.82,104.73,4.769]
[1644546877078,4.551,104.81,104.72,24.25362042]
[1644546877277,4.551,104.81,104.73,37.91028335]
[1644546877477,66.11646206,104.82,104.75,27.72219255]
[1644546877880,64.77103918,104.82,104.76,1.75343792]
[1644546878080,64.77103918,104.82,104.77,37.91028335]
[1644546878081,22.8535,104.82,104.77,37.91028335]
[1644546878279,1.34542288,104.84,104.77,38.16028335]
[1644546878679,1.39202462,104.84,104.77,38.16028335]
[1644546879080,38.71433257,104.83,104.77,58.47918335]
[1644546879280,38.71433257,104.83,104.77,52.47918335]
[1644546879485,38.71433257,104.83,104.76,27.9772]
[1644546879705,40.05975545,104.83,104.76,4.771]
[1644546879882,5.89642288,104.82,104.76,4.771]
[1644546880283,5.89642288,104.82,104.76,5.021]
[1644546880483,11.89642288,104.82,104.76,49.37730041]
[1644546880682,4.551,104.82,104.76,49.37730041]
[1644546881088,4.551,104.82,104.76,65.45133833]
[1644546881284,38.71433257,104.83,104.76,71.45133833]
[1644546881483,1.34542288,104.84,104.76,71.45133833]
[1644546881683,1.34542288,104.84,104.76,94.49183833]
[1644546882485,43.47127234,104.83,104.76,88.49183833]
[1644546882685,43.47127234,104.83,104.76,94.49183833]
[1644546883288,43.47127234,104.83,104.76,88.49183833]
[1644546883490,44.81669522,104.83,104.76,92.73840041]
[1644546883791,43.47127234,104.83,104.76,81.96740041]
[1644546884392,43.47127234,104.83,104.76,87.96740041]
[1644546884989,43.47127234,104.83,104.76,89.72083833]
[1644546885393,1.34542288,104.84,104.76,89.72083833]
[1644546885592,1.39202462,104.85,104.76,100.85083833]
[1644546885792,1.39202462,104.85,104.77,4.769]
[1644546885992,1.39202462,104.85,104.79,14.3145]
[1644546885993,0.04660174,104.85,104.79,14.3145]
[1644546886191,25.33392462,104.86,104.79,14.3145]
[1644546886393,63.67928561,104.86,104.79,26.28857549]
[1644546886792,63.67928561,104.86,104.79,32.28857549]
[1644546887315,63.67928561,104.86,104.79,26.28857549]
[1644546887716,23.98850174,104.86,104.79,34.04201341]
[1644546887915,23.98850174,104.86,104.79,45.17201341]
[1644546888516,0.04660174,104.86,104.79,45.17201341]
[1644546888816,0.04660174,104.86,104.81,58.66800041]
[1644546889018,40.47957308,104.87,104.81,63.43700041]
[1644546889216,40.47957308,104.87,104.81,63.68700041]
[1644546889616,40.47957308,104.87,104.81,19.3307]
[1644546890319,46.47957308,104.87,104.81,19.3307]
[1644546890617,46.47957308,104.87,104.81,54.53501425]
[1644546892321,6.84542288,104.87,104.81,54.53501425]
[1644546892520,6.84542288,104.87,104.81,49.76601425]
[1644546892720,0.84542288,104.87,104.81,49.76601425]
[1644546893221,0.84542288,104.87,104.81,14.5617]
[1644546894226,47.31639543,104.86,104.81,14.5617]
[1644546897031,0.84542288,104.87,104.81,14.5617]
[1644546898029,44.09189792,104.87,104.81,14.5617]
[1644546898236,44.09189792,104.87,104.82,15.93091705]
[1644546898431,0.84542288,104.87,104.82,30.24321705]
[1644546898631,23.3195,104.88,104.82,30.49321705]
[1644546898831,23.3195,104.88,104.82,43.37665497]
[1644546899230,23.3195,104.88,104.82,49.37665497]
[1644546899632,29.36610174,104.88,104.82,49.37665497]
[1644546901334,29.36610174,104.88,104.82,43.37665497]
[1644546901533,29.36610174,104.88,104.82,49.37665497]
[1644546902034,6.04660174,104.88,104.82,49.37665497]
[1644546902244,0.04660174,104.88,104.82,49.37665497]
[1644546902439,0.04660174,104.9,104.83,24.0781]
[1644546902640,0.04660174,104.9,104.85,14.3062]
[1644546902839,0.04660174,104.9,104.85,48.4321]
[1644546903138,0.04660174,104.9,104.85,50.18553792]
[1644546903438,63.72767615,104.92,104.86,35.38045885]
[1644546903638,0.04831995,104.91,104.86,35.38045885]
[1644546903838,24.26553385,104.92,104.86,35.63045885]
[1644546904040,0.04831995,104.91,104.86,35.63045885]
[1644546904241,24.26553385,104.92,104.86,35.63045885]
[1644546904441,24.26553385,104.92,104.87,14.3051]
[1644546904846,24.26553385,104.92,104.87,14.5551]
[1644546905643,24.26553385,104.92,104.87,0.25]
[1644546905844,30.26553385,104.92,104.86,49.93705885]
[1644546906068,30.3138538,104.92,104.86,49.93705885]
[1644546906670,35.26198571,104.91,104.86,49.93705885]
[1644546907068,35.31030566,104.91,104.86,49.93705885]
[1644546908292,35.31030566,104.91,104.85,54.5469]
[1644546908675,35.31030566,104.91,104.85,48.5469]
[1644546909270,41.31030566,104.91,104.85,48.5469]
[1644546909671,41.31030566,104.91,104.85,48.7969]
[1644546911275,41.31030566,104.91,104.85,63.18124749]
[1644546911476,6.04831995,104.91,104.85,63.18124749]
[1644546911673,6.04831995,104.91,104.85,64.93341515]
[1644546911873,0.04831995,104.91,104.85,70.93341515]
[1644546912473,0.04831995,104.91,104.85,71.18341515]
[1644546912874,37.8348703,104.91,104.85,71.18341515]
[1644546913175,37.8348703,104.91,104.85,50.54906766]
[1644546913375,37.8348703,104.91,104.85,48.7969]
[1644546913575,37.8348703,104.91,104.85,11.38]
[1644546913776,37.8348703,104.91,104.85,0.25]
[1644546914176,37.8348703,104.91,104.84,14.3088]
[1644546914581,60.3414703,104.91,104.84,14.3088]
[1644546915378,60.3414703,104.91,104.82,89.30076766]
[1644546915379,60.3414703,104.91,104.82,41.60816766]
[1644546915578,60.3414703,104.91,104.82,28.976]
[1644546915779,66.3414703,104.91,104.82,28.976]
[1644546916879,80.6525703,104.91,104.82,49.2875]
[1644546917479,80.6525703,104.91,104.82,43.2875]
[1644546917782,80.6525703,104.91,104.82,49.2875]
[1644546917980,80.6525703,104.91,104.82,49.0375]
[1644546918380,66.3414703,104.91,104.82,49.0375]
[1644546918982,66.3414703,104.91,104.82,50.78966766]
[1644546919383,66.3414703,104.91,104.82,51.03966766]
[1644546919982,66.3414703,104.91,104.82,62.16966766]
[1644546921684,43.8348703,104.91,104.82,62.16966766]
[1644546923385,24.8286,104.9,104.82,56.16966766]
[1644546923585,0.04831995,104.89,104.82,57.40266766]
[1644546923786,0.04831995,104.89,104.82,51.40266766]
[1644546924185,0.04831995,104.89,104.82,57.40266766]
[1644546924787,0.04831995,104.89,104.84,14.3081]
[1644546924987,24.87691995,104.9,104.84,14.3081]
[1644546925187,0.04831995,104.9,104.85,7.77990085]
[1644546925386,0.04831995,104.9,104.85,8.02990085]
[1644546926288,0.04831995,104.9,104.85,22.33710085]
[1644546928589,0.04831995,104.9,104.85,0.25]
[1644546928791,0.04831995,104.9,104.84,45.4771]
[1644546929890,0.04831995,104.9,104.84,39.4771]
[1644546930291,0.04831995,104.9,104.84,45.4771]
[1644546930491,0.04831995,104.9,104.84,45.2271]
[1644546931794,0.04831995,104.9,104.84,39.4771]
[1644546932215,0.04831995,104.9,104.84,45.4771]
[1644546933295,0.04831995,104.9,104.84,39.4771]
[1644546933497,0.04831995,104.9,104.84,45.4771]
[1644546934802,0.04831995,104.9,104.84,39.4771]
[1644546935302,0.04831995,104.9,104.84,45.4771]
[1644546936309,0.04831995,104.9,104.84,39.4771]
[1644546936510,0.04831995,104.9,104.84,41.22926766]
[1644546936712,0.04831995,104.9,104.84,58.35926766]
[1644546937316,0.04831995,104.9,104.85,4.767]
[1644546937610,0.04831995,104.9,104.87,4.94591313]
[1644546937810,6.47883385,104.92,104.88,6.06439994]
[1644546938010,0.5271538,104.92,104.88,6.06439994]
[1644546938210,6.47883385,104.92,104.88,6.06439994]
[1644546938410,0.47883385,104.92,104.88,6.06439994]